bitfinex/quotes_ETHUSD_20241024
["timestamp","ask_amount","ask_price","bid_price","bid_amount"]
[1729764578054,0.09910237,2522.8,2522.7,4.07]
[1729764581854,4.06294237,2522.8,2522.7,4.07]
[1729764582054,0.09910237,2522.8,2522.7,4.07]
[1729764582290,0.09910237,2522.8,2522.7,8.034]
[1729764582493,4.78371,2523.4,2522.9,3.96361]
[1729764582715,0.09908692,2523.3,2522.9,3.9636]
[1729764582980,4.06216692,2523.3,2522.8,3.96369]
[1729764583400,3.96324,2523.2,2522.8,3.96369]
[1729764583579,0.09908942,2523.1,2522.8,3.96369]
[1729764583786,0.09908942,2523.1,2522.8,7.92746]
[1729764583983,4.06216931,2523.3,2522.8,7.92746]
[1729764584317,4.06216931,2523.3,2522.9,0.11370702]
[1729764584509,4.94674024,2523.3,2522.9,0.11370702]
[1729764585106,3.96324,2523.2,2522.9,0.11370702]
[1729764585310,4.06260626,2523.1,2522.7,4.8816]
[1729764585611,4.72733,2523.0,2522.8,0.11379305]
[1729764585816,0.09909831,2522.9,2522.8,0.11379305]
[1729764586013,4.06278831,2522.9,2522.8,0.11379305]
[1729764588778,3.96406,2522.7,2522.3,0.8263]
[1729764589123,3.96406,2522.7,2522.4,0.11403635]
[1729764589124,0.09911006,2522.6,2522.4,0.11403635]
[1729764591788,0.09911006,2522.6,2522.4,4.07849635]
[1729764592004,0.09910995,2522.7,2522.4,4.07849635]
[1729764592326,0.09910995,2522.7,2522.4,0.11403635]
[1729764593227,4.86581695,2522.7,2522.4,0.11403635]
[1729764593526,4.06313995,2522.7,2522.4,0.11403635]
[1729764601074,0.09910995,2522.7,2522.4,0.11403635]
[1729764601219,0.0991099,2522.8,2522.4,0.11403635]
[1729764601422,0.58178189,2522.8,2522.4,0.11403635]
[1729764601953,3.964,2522.7,2522.4,0.11403635]
[1729764602159,0.09910991,2522.6,2522.4,0.11403635]
[1729764602660,0.09910988,2522.7,2522.4,0.11403635]
[1729764603017,4.06321988,2522.7,2522.4,0.11403635]
[1729764603217,0.85097619,2522.6,2522.4,0.11403635]
[1729764606548,0.09910988,2522.7,2522.4,0.11403635]
[1729764607026,0.09910988,2522.7,2522.4,4.07849635]
[1729764607222,0.58178176,2522.8,2522.4,4.07849635]
[1729764607423,0.09910974,2523.0,2522.7,1.31754584]
[1729764607658,0.09910974,2523.0,2522.5,4.77086]
[1729764607659,4.06264974,2523.0,2522.5,6.08840584]
[1729764607867,4.06264974,2523.0,2522.8,0.11392197]
[1729764608160,4.06264974,2523.0,2522.9,0.11383594]
[1729764608467,4.06264974,2523.0,2522.6,3.96414]
[1729764608756,5.16154847,2523.0,2522.6,3.96414]
[1729764609140,5.16154847,2523.0,2522.7,0.114008]
[1729764609740,1.19800847,2523.0,2522.7,0.114008]
[1729764610334,6.47908431,2523.0,2522.7,0.114008]
[1729764610561,1.31754584,2522.9,2522.5,4.77093]
[1729764610769,0.09910018,2522.8,2522.6,0.11409404]
[1729764612661,1.31754584,2522.7,2522.6,0.11409404]
[1729764612866,5.65200995,2522.7,2522.6,0.11409404]
[1729764613174,5.65200995,2522.7,2522.3,0.8322]
[1729764613175,3.96424,2522.6,2522.3,0.8322]
[1729764613383,0.0991096,2522.5,2522.3,0.8322]
[1729764613572,0.09910956,2522.6,2522.3,0.8322]
[1729764614247,0.09910956,2522.6,2522.4,0.11418767]
[1729764615841,8.10871307,2522.5,2522.4,0.11418767]
[1729764616045,8.70139776,2522.5,2522.4,0.11418767]
[1729764616242,3.96487,2522.2,2521.9,4.07]
[1729764616455,0.4695804,2522.1,2521.9,4.07]
[1729764616780,0.09913179,2522.1,2522.0,0.11074008]
[1729764616983,4.43443569,2522.1,2522.0,0.11074008]
[1729764617484,4.43437642,2522.1,2522.0,0.11074008]
[1729764617783,8.87674665,2522.1,2519.9,3.96827]
[1729764617956,3.96621,2521.3,2520.7,4.75254]
[1729764618142,4.43585725,2521.2,2520.7,0.7855]
[1729764618342,0.09917262,2521.2,2520.7,0.7855]
[1729764618748,0.0991619,2521.8,2520.9,0.7975]
[1729764618968,0.09914348,2521.7,2521.1,0.7724]
[1729764619174,0.09914348,2521.8,2521.2,4.07079116]
[1729764619383,0.09914348,2521.8,2521.3,0.7724]
[1729764619743,0.09914348,2521.8,2521.4,0.1042789]
[1729764619996,4.06443347,2521.9,2521.4,0.1042789]
[1729764620400,0.09914216,2522.0,2521.4,0.1042789]
[1729764620719,3.96589,2521.5,2521.4,0.1042789]
[1729764621207,3.96636,2521.2,2521.0,4.07]
[1729764621510,0.09916582,2521.1,2521.0,4.07]
[1729764621663,3.96636,2521.2,2521.0,4.07]
[1729764621860,3.96616,2521.4,2521.0,4.07]
[1729764623010,7.9323,2521.4,2521.0,4.07]
[1729764623208,3.96614,2521.4,2521.0,4.07]
[1729764623714,0.09916137,2521.3,2521.0,4.07]
[1729764624017,4.06536137,2521.3,2521.0,4.07]
[1729764624600,0.09916137,2521.3,2521.0,4.07]
[1729764624809,3.96607,2521.4,2521.0,4.07]
[1729764625012,4.06538104,2521.3,2521.0,4.07]
[1729764625420,4.06538104,2521.3,2521.1,0.10167888]
[1729764627867,0.09916104,2521.3,2521.1,0.10167888]
[1729764628108,4.06521107,2521.4,2521.1,0.10167888]
[1729764628710,3.96594,2521.5,2521.1,0.10167888]
[1729764628867,3.96567,2521.7,2521.2,0.7535]
[1729764629071,7.93134,2521.7,2521.2,0.7535]
[1729764629407,3.96567,2521.7,2521.3,0.10152893]
[1729764629571,7.93136,2521.7,2521.3,0.10152893]
[1729764629771,7.93136,2521.7,2521.2,0.7535]
[1729764629991,3.96567,2521.7,2521.3,0.10152893]
[1729764630186,3.96567,2521.7,2521.2,0.7535]
[1729764630409,4.06481577,2521.7,2521.3,0.10152893]
[1729764630783,4.06481577,2521.7,2521.2,0.7535]
[1729764631106,8.03050577,2521.7,2521.3,0.10152893]
[1729764631413,7.93136,2521.7,2521.2,0.7535]
[1729764631627,3.96567,2521.7,2521.4,0.1014428]
[1729764631930,3.96566,2521.7,2521.3,0.10152893]
[1729764632092,8.03046579,2521.7,2521.5,0.10135668]
[1729764632292,7.93132,2521.7,2521.4,0.14229298]
[1729764632527,3.96566,2521.7,2521.6,0.14213981]
[1729764632704,4.06480565,2521.7,2521.5,0.14222754]
[1729764633007,4.06480565,2521.7,2521.6,0.14213981]
[1729764633214,4.06480565,2521.7,2521.2,0.7535]
[1729764633409,4.06480565,2521.7,2521.6,0.14213981]
[1729764633612,4.06480565,2521.7,2521.2,0.7535]
[1729764633829,4.06480565,2521.7,2521.3,0.14240303]
[1729764634334,4.06480565,2521.7,2521.2,0.7535]
[1729764634633,4.06480565,2521.7,2521.3,0.14240303]
[1729764635127,4.06480565,2521.7,2521.2,0.7535]
[1729764635430,4.06480565,2521.7,2521.3,0.14240303]
[1729764635725,3.96574,2521.6,2521.3,0.14240303]
[1729764635924,3.96527,2521.9,2521.5,0.7715]
[1729764636434,3.96557,2521.7,2521.6,0.14213981]
[1729764637943,3.96526,2521.9,2521.6,0.14213981]
[1729764638150,4.06455719,2521.8,2521.6,0.14213981]
[1729764640957,3.96542,2521.8,2521.6,0.14213981]
[1729764641420,3.96552,2521.8,2521.6,0.14213981]
[1729764641720,4.06465726,2521.8,2521.6,0.14213981]
[1729764643318,3.96552,2521.8,2521.6,0.14213981]
[1729764646608,3.96557,2521.7,2521.6,0.14213981]
[1729764646749,4.06470731,2521.7,2521.6,0.14213981]
[1729764647275,0.92573731,2521.7,2521.2,1.3007]
[1729764647481,3.96597,2521.5,2521.2,1.3007]
[1729764647907,0.09915071,2521.4,2521.0,4.8629]
[1729764648103,3.96652,2521.1,2521.0,4.07]
[1729764648388,4.06568955,2521.1,2521.0,4.08]
[1729764648767,4.83778955,2521.1,2521.0,0.01]
[1729764648981,4.83778955,2521.1,2520.3,0.7937]
[1729764648982,3.96692,2520.9,2520.3,0.7937]
[1729764649180,0.09917973,2520.8,2520.3,4.76132]
[1729764649391,3.96653,2521.1,2520.5,0.7578]
[1729764649598,3.96653,2521.1,2520.5,8.69256]
[1729764649757,0.09917413,2521.0,2520.5,4.72518]
[1729764650902,0.09917413,2521.0,2520.6,0.01]
[1729764651202,4.06597413,2521.0,2520.6,0.01]
[1729764652513,4.06597413,2521.0,2520.5,4.72524]
[1729764652859,0.09917413,2521.0,2520.6,3.96729]
[1729764653358,4.06561415,2521.2,2520.6,3.96722]
[1729764653670,0.09917415,2521.2,2520.6,3.96722]
[1729764653866,3.96653,2521.1,2520.6,3.96722]
[1729764654093,0.09917251,2521.0,2520.6,3.96722]
[1729764655323,4.06570251,2521.1,2520.6,3.96722]
[1729764655485,4.06570251,2521.1,2520.6,3.96721]
[1729764657101,4.06554241,2521.2,2520.8,0.7807]
[1729764657500,4.95015465,2521.2,2520.8,0.7807]
[1729764659045,4.95015465,2521.2,2520.9,0.13815013]
[1729764659804,3.96662,2521.1,2520.9,0.13815013]
[1729764660026,4.06578702,2521.1,2520.9,0.13815013]
[1729764660707,0.09916702,2521.1,2520.8,0.7807]
[1729764660905,4.06552698,2521.2,2520.8,4.74769]
[1729764661432,4.06552698,2521.2,2520.9,0.13846726]
[1729764663751,8.03202698,2521.2,2520.9,0.13846726]
[1729764663953,0.09916695,2521.1,2520.9,0.13846726]
[1729764666641,4.06582695,2521.1,2520.9,0.13846726]
[1729764666847,4.95049565,2521.1,2520.9,0.13846726]
[1729764668686,3.96667,2521.0,2520.9,0.13846726]
[1729764668978,6.20896292,2521.0,2520.9,0.13846726]
[1729764669187,6.20896292,2521.0,2520.3,0.7517]
[1729764669188,3.96741,2520.6,2520.3,0.7517]
[1729764669400,0.0991878,2520.5,2520.3,0.7517]
[1729764669699,4.0666478,2520.5,2520.4,0.13914551]
[1729764670051,4.0666478,2520.5,2520.1,4.71977]
[1729764670362,6.4036725,2520.5,2520.4,0.13914551]
[1729764670567,3.96774,2520.4,2520.1,0.7517]
[1729764670774,0.09920001,2520.3,2520.1,0.7517]
[1729764672088,5.08437659,2520.5,2520.1,0.7517]
[1729764672387,4.06666,2520.5,2520.1,0.7517]
[1729764672591,0.09919999,2520.6,2520.3,3.96771]
[1729764672933,4.72301,2520.8,2520.3,3.96771]
[1729764672934,0.09919046,2520.8,2520.5,3.96734]
[1729764673249,0.09919046,2520.8,2520.3,8.69435]
[1729764673453,0.09919046,2520.8,2520.4,4.51762]
[1729764673691,3.96718,2520.7,2520.3,0.759]
[1729764673901,0.09918976,2520.6,2520.3,4.72676]
[1729764674186,0.09918976,2520.6,2520.4,0.1397077]
[1729764674362,0.09918976,2520.7,2520.4,0.1397077]
[1729764674689,3.96669,2521.0,2520.5,0.759]
[1729764675000,0.09918149,2520.9,2520.5,0.759]
[1729764675156,0.09918149,2520.9,2520.6,0.13953209]
[1729764676066,4.74062,2521.3,2520.6,0.21887722]
[1729764676280,0.57323365,2521.2,2520.7,0.8079]
[1729764676470,0.09917165,2521.2,2520.7,0.8079]
[1729764676782,0.09917165,2521.2,2520.8,0.1393565]
[1729764676959,0.09916694,2521.3,2520.8,0.1393565]
[1729764677155,4.06538694,2521.3,2520.8,3.96688]
[1729764677459,0.09916694,2521.3,2520.9,0.13905162]
[1729764677868,0.98227963,2521.3,2520.9,0.13905162]
[1729764685730,4.94852963,2521.3,2520.9,0.13905162]
[1729764686013,3.96667,2521.0,2520.9,0.13905162]
[1729764686172,4.06585071,2521.0,2520.5,0.7853]
[1729764686373,4.06585071,2521.0,2520.9,0.13905162]
[1729764686625,4.06585071,2521.0,2520.5,0.7853]
[1729764686784,0.09918071,2521.0,2520.9,0.13876776]
[1729764686987,0.46898949,2521.0,2520.5,4.75262]
[1729764687182,0.09918071,2521.0,2520.5,4.75262]
[1729764687395,0.09918071,2521.0,2520.6,0.13910349]
[1729764688071,4.06598071,2521.0,2520.6,0.13910349]
[1729764688285,3.96685,2520.9,2520.6,0.13910349]
[1729764688476,1.28968412,2520.8,2520.6,0.13910349]
[1729764688701,5.15753307,2520.8,2520.6,0.13910349]
[1729764688907,0.09918161,2520.7,2520.2,8.69582]
[1729764689213,0.09918161,2520.7,2520.3,3.97776]
[1729764689922,4.06647161,2520.7,2520.3,0.01]
[1729764690074,1.02157308,2520.7,2520.3,0.01]
[1729764690415,1.02157308,2520.7,2520.3,0.7701]
[1729764691174,4.98875308,2520.7,2520.3,0.7701]
[1729764691893,4.98875308,2520.7,2520.3,0.01]
[1729764692099,4.33745588,2520.6,2520.3,0.01]
[1729764692294,0.09919463,2520.5,2520.3,0.01]
[1729764692930,0.808,2520.4,2520.3,0.01]
[1729764693525,0.808,2520.4,2520.1,0.01]
[1729764693726,0.0992052,2520.3,2520.1,0.01]
[1729764695015,0.0992052,2520.3,2520.0,8.65892788]
[1729764695399,0.0992052,2520.3,2520.0,4.69067788]
[1729764695612,4.8635106,2520.3,2520.0,4.69067788]
[1729764695921,4.8635106,2520.3,2520.0,4.07]
[1729764696139,0.8957206,2520.3,2520.0,4.07]
[1729764697140,4.58292614,2520.9,2520.0,4.07]
[1729764697292,1.83209859,2520.8,2520.2,3.96793]
[1729764697493,0.36984693,2520.7,2520.3,3.96769]
[1729764697703,0.0991901,2520.6,2520.3,3.96769]
[1729764698126,0.09919008,2520.7,2520.3,3.96769]
[1729764698335,0.57301208,2520.7,2520.3,3.96769]
[1729764698507,0.09919008,2520.7,2520.3,3.96769]
[1729764698701,0.09919008,2520.7,2520.2,3.96793]
[1729764698919,0.09919008,2520.7,2520.2,7.93579]
[1729764699318,0.09919008,2520.7,2520.2,3.96786]
[1729764699621,0.09919008,2520.7,2520.3,3.96778]
[1729764699795,0.97963209,2520.7,2520.1,0.8249]
[1729764699995,3.96757,2520.5,2520.0,8.03817]
[1729764700232,0.09920299,2520.4,2520.0,8.03817]
[1729764700598,4.06685299,2520.4,2520.0,4.07]
[1729764701729,4.06685299,2520.4,2520.0,8.03824]
[1729764702840,0.09920299,2520.4,2520.0,8.03824]
[1729764703001,0.09920299,2520.4,2520.0,8.03818]
[1729764703433,0.0992028,2520.5,2520.1,3.96808]
[1729764703752,0.0992028,2520.5,2520.3,4.72406]
[1729764703960,0.09919103,2520.7,2520.3,4.72406]
[1729764704139,0.98495413,2520.7,2520.4,0.13984135]
[1729764705352,4.95210413,2520.7,2520.4,0.13984135]
[1729764706347,0.98495413,2520.7,2520.4,0.13984135]
[1729764708847,3.96731,2520.6,2520.4,0.13984135]
[1729764709156,0.09919872,2520.5,2520.1,4.76849]
[1729764709314,4.5618959,2520.5,2520.1,4.76849]
[1729764710255,4.5618959,2520.5,2520.1,0.8004]
[1729764710571,3.9677,2520.4,2520.0,4.07]
[1729764710717,4.06707927,2520.3,2520.0,4.07]
[1729764711656,3.96794,2520.2,2520.0,4.07]
[1729764711821,0.09920653,2520.1,2520.0,4.07]
[1729764712633,0.8014,2520.4,2520.1,3.96808]
[1729764712955,3.96739,2520.6,2520.1,3.96808]
[1729764712956,0.09920053,2520.5,2520.1,4.76848]
[1729764713527,4.06666053,2520.5,2520.1,4.76848]
[1729764714287,0.98274558,2520.5,2520.1,4.76848]
[1729764715228,4.95023558,2520.5,2520.1,4.76848]
[1729764717776,0.98274558,2520.5,2520.1,8.73649]
[1729764718098,3.9667,2521.0,2520.5,3.96737]
[1729764718241,4.06601194,2520.9,2520.5,3.96737]
[1729764718568,4.86926813,2520.9,2520.5,3.96737]
[1729764718746,4.06601194,2520.9,2520.5,3.96737]
[1729764719147,4.06601194,2520.9,2520.6,0.13954879]
[1729764720381,0.09918194,2520.9,2520.6,0.13954879]
[1729764720586,3.96684,2520.9,2520.6,0.13954879]
[1729764720741,0.09918188,2520.8,2520.6,0.13954879]
[1729764722048,0.09801392,2520.8,2520.6,0.13954879]
[1729764724860,4.06507392,2520.8,2520.6,0.13954879]
[1729764725060,4.06507392,2520.8,2520.4,4.76798]
[1729764725272,0.09801392,2520.8,2520.5,4.10699866]
[1729764725486,0.8014,2521.2,2520.6,3.96728]
[1729764725661,1.06004255,2521.1,2520.8,0.7974]
[1729764725977,4.33630454,2521.0,2520.9,0.13907945]
[1729764726347,4.33630454,2521.0,2520.6,4.76462]
[1729764726546,4.33630454,2521.0,2520.6,0.7974]
[1729764726547,4.43556918,2520.9,2520.6,0.7974]
[1729764726795,0.09917464,2520.9,2520.6,4.76463]
[1729764727694,4.06570463,2521.1,2520.7,3.96707]
[1729764727858,0.36969874,2521.0,2520.7,3.96707]
[1729764728186,0.36969874,2520.9,2520.7,3.96707]
[1729764728386,4.06570463,2521.1,2520.7,3.96707]
[1729764728687,0.36974741,2521.0,2520.9,3.96683]
[1729764728894,0.0991746,2521.2,2520.9,3.96683]
[1729764729049,0.36976829,2521.1,2520.9,3.96683]
[1729764729892,0.36976829,2521.1,2520.8,4.72407]
[1729764730187,0.0991746,2521.2,2520.8,4.72407]
[1729764730351,0.36982969,2521.1,2520.8,4.72407]
[1729764730552,0.0991746,2521.2,2520.8,4.72407]
[1729764730895,0.36983521,2521.1,2520.8,4.72407]
[1729764731078,0.0991746,2521.2,2520.8,4.72407]
[1729764731247,0.36982584,2521.1,2520.8,4.72407]
[1729764731451,0.0991746,2521.2,2520.8,4.72407]
[1729764731762,0.36985378,2521.1,2520.8,4.72407]
[1729764732104,0.0991746,2521.2,2520.9,0.01]
[1729764732395,0.36983276,2521.1,2520.9,0.01]
[1729764732693,0.0991746,2521.2,2520.9,0.01]
[1729764732895,0.36984133,2521.1,2520.9,0.01]
[1729764733109,0.0991746,2521.2,2520.9,0.01]
[1729764733307,0.3698755,2521.1,2520.9,0.01]
[1729764733503,4.06583548,2521.0,2520.6,0.7598]
[1729764733803,3.96684,2520.9,2520.6,0.01]
[1729764734012,3.96705,2520.8,2520.6,0.01]
[1729764734180,0.09917631,2520.8,2520.7,0.13925502]
[1729764734569,0.09917631,2520.8,2520.7,0.14925502]
[1729764736406,0.09918111,2520.9,2520.7,0.14925502]
[1729764738580,0.09918111,2520.9,2520.7,0.13925502]
[1729764739505,0.09918111,2520.9,2520.5,3.96745]
[1729764739677,0.09918111,2520.9,2520.8,0.1388778]
[1729764739878,4.54938922,2520.9,2520.4,0.7598]
[1729764740119,3.9672,2520.7,2520.5,0.13915789]
[1729764740269,0.87308993,2520.6,2520.5,0.13915789]
[1729764740463,4.84038993,2520.6,2520.2,4.79871]
[1729764740680,0.87308993,2520.6,2520.3,0.13933352]
[1729764741184,0.87308993,2520.6,2520.3,4.10709352]
[1729764742320,0.09918993,2520.6,2520.4,3.9675]
[1729764742622,3.96723,2520.7,2520.3,0.13933352]
[1729764742787,0.87309395,2520.6,2520.5,0.13915789]
[1729764742981,0.87309395,2520.6,2520.4,0.1392457]
[1729764742982,3.96746,2520.5,2520.4,0.1392457]
[1729764743188,3.96746,2520.5,2520.0,4.9008]
[1729764743411,0.09920068,2520.4,2520.0,8.86896]
[1729764743723,0.09920068,2520.4,2520.1,3.96808]
[1729764746323,0.58325675,2520.4,2520.0,4.07]
[1729764746535,3.96802,2520.2,2520.0,4.07]
[1729764746840,3.96802,2520.2,2519.5,0.8286]
[1729764746841,4.89589765,2520.1,2519.6,3.96886]
[1729764747539,4.89589765,2520.1,2519.5,4.79751]
[1729764747540,3.96826,2520.0,2519.5,4.79751]
[1729764747845,0.0992165,2519.9,2519.6,3.96888]
[1729764749232,0.0992165,2519.9,2519.7,0.14036155]
[1729764749434,0.09921729,2520.0,2519.7,0.14036155]
[1729764750578,0.09921729,2520.0,2519.7,4.88245155]
[1729764750760,4.84742724,2520.3,2519.7,4.88245155]
[1729764750926,4.06725372,2520.2,2519.7,4.88245155]
[1729764751965,0.09921372,2520.2,2519.8,3.96856]
[1729764752449,0.09921372,2520.2,2519.9,0.14035847]
[1729764752980,4.06727372,2520.2,2519.9,0.14035847]
[1729764753131,4.06727372,2520.2,2519.8,3.96849]
[1729764753327,4.06727372,2520.2,2520.0,0.14027063]
[1729764753562,4.06727372,2520.2,2519.9,0.14035847]
[1729764753875,4.06727372,2520.2,2520.1,0.14018279]
[1729764754029,0.09921372,2520.2,2520.1,0.14018279]
[1729764754232,0.09921372,2520.2,2519.9,3.96839]
[1729764754467,0.09921372,2520.2,2520.0,3.96823]
[1729764754747,3.96774,2520.4,2520.1,0.7965]
[1729764754946,0.09920178,2520.3,2520.0,0.14027063]
[1729764755272,0.09920178,2520.3,2520.1,0.14041109]
[1729764755471,0.09920178,2520.3,2519.9,4.76489]
[1729764755683,0.09920178,2520.3,2520.0,0.14049893]
[1729764756257,3.96779,2520.3,2520.0,0.14049893]
[1729764756457,0.09920174,2520.2,2520.0,0.14049893]
[1729764757943,0.09920172,2520.3,2520.0,0.14049893]
[1729764758460,0.09920172,2520.3,2520.0,4.10865893]
[1729764758654,0.09920171,2520.4,2520.1,3.96807]
[1729764758858,0.09920171,2520.4,2520.2,0.14032326]
[1729764759650,0.09920171,2520.4,2520.0,3.96824]
[1729764759858,0.09920171,2520.4,2520.1,0.14041109]
[1729764760881,0.09920171,2520.4,2520.1,4.10847109]
[1729764764503,0.09920171,2520.4,2520.1,0.14041109]
[1729764764659,0.09920171,2520.4,2520.0,3.9682]
[1729764764862,0.09920171,2520.4,2520.1,0.14041109]
[1729764766399,0.09920171,2520.4,2520.1,4.10849109]
[1729764768511,0.09920171,2520.4,2520.1,5.42829007]
[1729764769081,3.96748,2520.5,2520.3,1.31979898]
[1729764769410,0.09919532,2520.4,2520.1,5.28777898]
[1729764769998,4.06692532,2520.4,2520.0,1.31979898]
[1729764770208,0.7943,2520.3,2520.0,1.31979898]
[1729764770392,0.893501,2520.3,2520.0,1.31979898]
[1729764770591,0.099201,2520.3,2520.0,5.28802898]
[1729764771132,4.06693098,2520.4,2520.0,5.28802898]
[1729764773300,0.09920098,2520.4,2520.0,9.25618898]
[1729764773638,4.06684098,2520.4,2520.0,1.31979898]
[1729764773820,4.61393074,2520.4,2520.0,1.31979898]
[1729764774440,3.96785,2520.3,2519.9,5.28817898]
[1729764774598,0.09920087,2520.2,2519.9,5.28811898]
[1729764774798,0.09920087,2520.2,2519.9,9.25643898]
[1729764775027,0.09920087,2520.2,2519.9,5.28811898]
[1729764775225,3.96785,2520.3,2519.9,5.28811898]
[1729764777851,0.09920087,2520.2,2519.9,5.28811898]
[1729764779214,0.09920087,2520.2,2520.0,0.14047109]
[1729764780204,0.8036,2520.1,2520.0,0.14047109]
[1729764780616,0.8036,2520.1,2519.9,3.96832]
[1729764780829,0.8036,2520.1,2520.0,0.14047109]
[1729764781334,1.17360053,2520.1,2520.0,0.14047109]
[1729764782129,1.17360278,2520.1,2519.8,5.28834898]
[1729764782337,0.8036,2520.1,2520.0,0.14047109]
[1729764782486,1.17360849,2520.1,2519.9,5.42870792]
[1729764782686,0.09920087,2520.2,2520.0,5.28804898]
[1729764783027,0.09920087,2520.2,2520.1,0.14038325]
[1729764783232,0.37001339,2520.2,2520.1,0.14038325]
[1729764783430,0.46921499,2520.2,2520.1,0.14038325]
[1729764783632,0.37001339,2520.2,2520.1,0.14038325]
[1729764784032,1.4447713,2520.8,2520.4,3.9676]
[1729764784200,1.06130684,2520.7,2520.4,1.31979898]
[1729764784402,1.06130684,2520.7,2520.5,0.14013778]
[1729764784403,0.37004671,2520.6,2520.5,0.14013778]
[1729764785338,0.37004671,2520.6,2520.3,5.28756898]
[1729764785632,0.37004671,2520.5,2520.4,5.42764457]
[1729764785860,0.37003136,2520.5,2520.4,4.10784559]
[1729764786967,0.37003136,2520.5,2520.4,5.42764457]
[1729764787156,0.37003136,2520.5,2520.4,6.25524457]
[1729764787340,0.86568467,2521.0,2520.5,0.55]
[1729764787551,0.86568467,2521.0,2520.6,1.31979898]
[1729764787552,0.96212327,2520.9,2520.6,1.31979898]
[1729764787851,0.96212327,2520.8,2520.6,0.14004997]
[1729764788030,0.37004741,2520.7,2520.6,1.45984895]
[1729764788370,0.37004741,2520.7,2520.6,5.42714895]
[1729764789055,0.37004741,2520.7,2520.6,5.98714895]
[1729764789359,0.09917386,2521.1,2520.7,3.96706]
[1729764789785,0.96184777,2521.0,2520.7,5.28685898]
[1729764790062,0.36994145,2520.9,2520.8,0.13987439]
[1729764790419,0.36994145,2520.9,2520.7,5.28685898]
[1729764790832,0.36994145,2520.9,2520.8,0.13987439]
[1729764791010,0.46910847,2520.9,2520.8,0.13987439]
[1729764791213,0.46910847,2520.9,2520.4,4.79512]
[1729764791214,3.96708,2520.8,2520.4,1.31979898]
[1729764791417,3.96708,2520.8,2520.5,0.01]
[1729764791418,3.9673,2520.6,2520.5,0.01]
[1729764791663,4.85858848,2520.6,2520.5,0.01]
[1729764791827,5.22834455,2520.6,2520.5,0.01]
[1729764792630,1.26104455,2520.6,2520.2,6.09761898]
[1729764792826,0.7921,2520.6,2520.3,5.29755898]
[1729764793174,4.75944,2520.6,2520.3,0.01]
[1729764793388,4.75944,2520.6,2520.2,6.09761898]
[1729764793686,4.85862844,2520.6,2520.2,6.09761898]
[1729764793885,0.89128844,2520.6,2520.1,1.31979898]
[1729764794041,4.33720497,2520.5,2520.1,5.28786898]
[1729764794239,3.96746,2520.5,2520.2,0.14040123]
[1729764795262,4.06682844,2520.4,2520.2,0.14040123]
[1729764795745,4.06682844,2520.4,2520.3,0.13985123]
[1729764795946,4.43663215,2520.4,2520.0,9.35795898]
[1729764796188,4.06682844,2520.4,2520.0,9.35795898]
[1729764796557,4.06682844,2520.4,2520.1,0.14002688]
[1729764797281,0.3698412,2520.3,2520.1,0.14002688]
[1729764797491,1.24394525,2520.2,2520.1,0.14002688]
[1729764797638,0.3698412,2520.2,2520.1,0.14002688]
[1729764798036,0.09920405,2520.3,2520.1,0.14002688]
[1729764798240,0.36983679,2520.2,2520.1,0.14002688]
[1729764800691,0.09920405,2520.3,2520.1,0.14002688]
[1729764800987,0.37015631,2520.2,2520.1,0.14002688]
[1729764802194,1.41526224,2520.2,2520.1,0.14002688]
[1729764803145,1.51446444,2520.2,2520.1,0.14002688]
[1729764808288,0.72576444,2520.2,2520.1,0.14002688]
[1729764808857,4.69369444,2520.2,2520.1,0.14002688]
[1729764809071,7.42010031,2520.2,2520.1,0.14002688]
[1729764809275,7.42010031,2520.2,2519.6,4.74998]
[1729764809276,3.96811,2520.1,2519.6,10.03855898]
[1729764809562,0.46936978,2520.0,2519.6,4.74998]
[1729764809763,0.09921347,2520.0,2519.6,4.74998]
[1729764810186,0.09921347,2520.0,2519.6,10.03857898]
[1729764811393,0.09921347,2520.0,2519.6,0.7812]
[1729764811604,0.09921343,2520.3,2520.0,3.96824]
[1729764811897,0.37003228,2520.2,2520.0,6.07863898]
[1729764812060,0.37003228,2520.1,2520.0,4.75884]
[1729764812600,0.09921343,2520.3,2520.0,4.75884]
[1729764812802,0.3700258,2520.2,2520.0,4.75884]
[1729764813101,0.09921343,2520.3,2520.0,4.75884]
[1729764813303,0.37001744,2520.2,2520.0,4.75884]
[1729764813487,0.09921343,2520.3,2520.0,4.75884]
[1729764813667,0.37001791,2520.2,2520.0,0.7906]
[1729764813862,0.09921343,2520.3,2520.0,0.7906]
[1729764814102,0.37001794,2520.2,2520.0,0.7906]
[1729764814305,4.06699343,2520.3,2520.0,0.7906]
[1729764814511,0.37001101,2520.2,2520.0,0.7906]
[1729764814805,5.07899467,2520.3,2520.0,0.7906]
[1729764814993,0.37001287,2520.2,2520.0,0.7906]
[1729764815306,5.07899467,2520.3,2520.0,0.7906]
[1729764815506,0.37000771,2520.2,2520.0,0.7906]
[1729764815690,4.0666919,2520.5,2520.1,1.31979898]
[1729764815898,0.3700247,2520.4,2520.1,5.28787898]
[1729764816107,3.96765,2520.4,2520.0,6.07863898]
[1729764816417,0.09919717,2520.4,2520.1,5.28779898]
[1729764816618,4.06666323,2520.5,2520.1,5.28779898]
[1729764816786,0.37003685,2520.4,2520.1,5.28779898]
[1729764817118,4.06666323,2520.5,2520.1,5.28779898]
[1729764817325,0.37003512,2520.4,2520.1,5.28779898]
[1729764817493,4.06666323,2520.5,2520.1,5.28779898]
[1729764817817,0.37003536,2520.4,2520.1,1.31979898]
[1729764817994,4.06666323,2520.5,2520.1,1.31979898]
[1729764818191,0.37003531,2520.4,2520.1,1.31979898]
[1729764818414,4.06666323,2520.5,2520.1,1.31979898]
[1729764818717,0.37003376,2520.4,2520.1,1.31979898]
[1729764818913,4.06666323,2520.5,2520.1,1.31979898]
[1729764819093,0.37003383,2520.4,2520.1,1.31979898]
[1729764819289,4.06666323,2520.5,2520.1,5.28777898]
[1729764819607,0.09919317,2520.6,2520.2,6.07309898]
[1729764819919,0.37003803,2520.5,2520.2,6.07309898]
[1729764820082,4.06650317,2520.6,2520.2,4.7533]
[1729764820289,0.37004447,2520.5,2520.2,4.7533]
[1729764820507,4.06650317,2520.6,2520.2,4.7533]
[1729764820822,0.37003917,2520.5,2520.2,0.7854]
[1729764821011,4.06650317,2520.6,2520.2,0.7854]
[1729764821181,0.37004615,2520.5,2520.2,0.7854]
[1729764821385,4.06650317,2520.6,2520.2,0.7854]
[1729764821586,0.37003767,2520.5,2520.2,0.7854]
[1729764821788,4.06650317,2520.6,2520.2,0.7854]